Cogmind - Beta 14 @@@ ROGUE MODE // 2024.10.18 @ 18:17:35 Player: WazdakkaGutsmek Result: Destroyed by as-00257 with Assembled Maul Performance ------------- Evolutions (0) 0 Regions Visited (2) 400 Robots Destroyed (31) 155 Value Destroyed (808) 808 Prototype IDs (1) 20 Alien Tech Used (0) 0 Bonus (0) 0 TOTAL SCORE: 1383 Bonus ------- None Cogmind --------- Core Integrity 0/250 Matter 263/300 Energy 86/100 System Corruption 0% Temperature Cool (12) Movement Treading (160) Location -10/Mines Parts ------- > --- POWER (1) -------- (None) > --- PROPULSION (2) --- Improved Treads Improved Treads > --- UTILITY (2) ------ Large Storage Unit Light Armor Plating > --- WEAPON (2) ------- Improved Light Cannon Improved Light Cannon > --- INVENTORY (15) --- Light Nuclear Core Improved Treads Improved Treads Improved Treads Improved Treads Improved Heat Sink Improved Heat Sink Small Storage Unit High-capacity Matter Pod (200) Faulty Experimental Sensor Array Seismic Detector Targeting Computer Hacking Suite Particle Gun Grenade Launcher Peak State ------------ > --- POWER ------------ Light Nuclear Core > --- PROPULSION ------- Improved Treads Improved Treads > --- UTILITY ---------- Large Storage Unit Experimental Sensor Array > --- WEAPON ----------- Improved Light Cannon Improved Light Cannon > --- INVENTORY -------- Light Nuclear Core Improved Treads Improved Treads Improved Treads Improved Treads Improved Heat Sink Improved Heat Sink Small Storage Unit High-capacity Matter Pod Seismic Detector Targeting Computer Light Armor Plating Hacking Suite Particle Gun Grenade Launcher [Rating: 23] Favorites ----------- Power Light Nuclear Core Engine Light Ion Engine Power Core Light Nuclear Core Propulsion Improved Treads Treads Improved Treads Leg Aluminum Leg Utility Seismic Detector Device Seismic Detector Storage Large Storage Unit Protection Light Armor Plating Weapon Improved Light Cannon Energy Gun Small Laser Ballistic Gun Light Assault Rifle Ballistic Cannon Improved Light Cannon Build | -11 -10 -10 ------- Run | Yrd Mat Min Slots Evolved . | . . . Power . | . . . Propulsion . | . . . Utility . | . . . Weapon . | . . . Parts Attached 22 | 1 18 3 Power 3 | . 3 . Engine 1 | . 1 . Core 2 | . 2 . Reactor . | . . . Propulsion 5 | . 5 . Treads 2 | . 2 . Leg 3 | . 3 . Wheel . | . . . Hover . | . . . Flight . | . . . Utility 9 | . 6 3 Device 5 | . 3 2 Storage 3 | . 3 . Processor . | . . . Hackware . | . . . Protection 1 | . . 1 Artifact . | . . . Weapon 5 | 1 4 . Energy Gun 1 | . 1 . Energy Cannon . | . . . Ballistic Gun 2 | 1 1 . Ballistic Cannon 2 | . 2 . Launcher . | . . . Special Weapon . | . . . Impact Weapon . | . . . Slashing Weapon . | . . . Piercing Weapon . | . . . Special Melee Weapon . | . . . Unidentified Prototypes 1 | . . 1 Parts Lost 7 | . 6 1 Power 2 | . 1 1 Propulsion 2 | . 2 . Utility 1 | . 1 . Weapon 2 | . 2 . Highest Loss Streak 3 | . 3 1 To Critical Strikes . | . . . Average Slot Usage (%) 90 | . 88 99 Engine 1 | . 2 . Core 11 | . 11 13 Treads 14 | . 10 28 Leg 13 | . 16 . Device 11 | . 10 13 Storage 13 | . 13 14 Energy Gun 3 | . 4 . Ballistic Gun 7 | . 9 . Ballistic Cannon 11 | . 6 28 Peak Build Rating 23 | 6 14 23 Average Rating 10 | 6 9 15 On Entrance 8 | 6 6 14 Naked Turns . | . . . Heaviest Build 34 | 11 34 34 Greatest Support 46 | 20 46 46 Greatest Overweight (x) 1 | . 1 . Average Overweight (x) . | . . . Largest Inventory Capacity 15 | 8 15 15 Average Capacity 12 | 8 11 15 Most Carried 15 | 6 13 15 Average Carried 9 | 6 8 13 Final Capacity 15 | 8 15 15 Final Carried 15 | 6 11 15 Class Distribution -------------------- 96% | Mutant 3% | Scavenger-Mutant Dominant Class ---------------- Mutant | -10/Materials Mutant | -10/Mines Resources | -11 -10 -10 ----------- Run | Yrd Mat Min Matter Collected 927 | 219 358 350 Remotely . | . . . Salvage Created 1104 | 24 727 353 Parts 58 | 2 44 12 Haulers Intercepted 1 | . 1 . Recyclers Shooed 1 | . . 1 Parts Field Recycled . | . . . Retrieved Matter . | . . . Parts Self-Destructed . | . . . Prevented . | . . . Kills | -11 -10 -10 ------- Run | Yrd Mat Min Combat Hostiles Destroyed 23 | . 16 7 Guns 12 | . 12 . Cannons 11 | . 4 7 Classes Destroyed 9 | 1 7 1 Worker 1 | . 1 . Tunneler 1 | 1 . . Hauler 1 | . 1 . Recycler 4 | . 1 3 Operator 1 | . 1 . Watcher 3 | . 3 . Swarmer 3 | . 3 . Grunt 17 | . 13 4 Assembled 3 | . . 3 Best Kill Streak 4 | 1 4 2 Combat Bots Only 2 | . 2 2 Max Kills in Single Turn 1 | 1 1 1 Gunslinging . | . . . Exploded . | . . . Melee . | . . . Uniques/NPCs Destroyed . | . . . Combat | -11 -10 -10 -------- Run | Yrd Mat Min Hostile Shots Fired 103 | . 77 26 Missed 22 | . 16 6 Damage Taken 1120 | . 813 307 Core 262 | . 191 71 Absorbed by Shields . | . . . Core Remaining (%) 100 | 100 . . Volleys Fired 119 | 3 97 19 Largest 2 | 2 2 2 Hottest 78 | 60 78 78 Shots Fired 190 | 6 146 38 Gun 132 | 6 126 . Cannon 58 | . 20 38 Launcher . | . . . Special . | . . . Kinetic 138 | 3 97 38 Thermal 52 | 3 49 . Explosive . | . . . Electromagnetic . | . . . Robot Hit Streak 11 | 2 10 11 Robot Miss Streak 5 | 1 5 3 Penetration Max . | . . . Secondary Targets 2 | . 2 . Max Gunslinging Chain 1 | . 1 . Shots Hit Robots 117 | 4 88 25 Core Hits 54 | 2 39 13 Critical Kills . | . . . Critical Parts Destroyed . | . . . Critical Strikes 2 | . . 2 Blast 2 | . . 2 Melee Attacks . | . . . Impact . | . . . Slashing . | . . . Piercing . | . . . Sneak Attacks . | . . . Combat Hostiles . | . . . Follow-up Attacks . | . . . Damage Inflicted 1669 | 45 1091 533 Guns 894 | 45 849 . Cannons 770 | . 237 533 Explosions . | . . . Melee . | . . . Ramming 5 | . 5 . Kinetic 1271 | 25 713 533 Thermal 393 | 20 373 . Explosive . | . . . Electromagnetic . | . . . Impact . | . . . Slashing . | . . . Piercing . | . . . Highest Corruption . | . . . Average Corruption . | . . . Corruption Purged . | . . . Corruption Blocked . | . . . Overload Shots . | . . . Overflow Damage 3 | . . 3 Projectiles 3 | . . 3 Explosions . | . . . Melee . | . . . Knockbacks 10 | . 3 7 Impact . | . . . Kinetic 10 | . 3 7 Secondary . | . . . Self-Inflicted Damage . | . . . Shots . | . . . Rammed . | . . . Targets Rammed 3 | . 3 . Kicked 3 | . 3 . Crushed . | . . . Highest Temperature 197 | . 132 197 Average Temperature 28 | . 20 47 Received Heat Transfer 423 | . 339 84 Siege Activations . | . . . Robots Corrupted . | . . . Combat Hostiles . | . . . Parts Fried . | . . . Impact Corruptions . | . . . Robots Melted . | . . . Combat Hostiles . | . . . Parts Melted 2 | . 2 . Heat Transferred 850 | 50 800 . Parts Sabotaged . | . . . Parts Stolen . | . . . Parts Stripped . | . . . Power Chain Reactions . | . . . Alert | -11 -10 -10 ------- Run | Yrd Mat Min Peak Influence 233 | 5 169 233 Initial 39 | . 3 39 Average 70 | 4 59 113 Maximum Alert Level 1 | . . 1 Low Security (%) 98 | 100 100 94 Level 1 1 | . . 5 Level 2 . | . . . Level 3 . | . . . Level 4 . | . . . Level 5 . | . . . High Security . | . . . Max Security . | . . . Squads Dispatched 4 | . 4 . Investigation 2 | . 2 . Extermination . | . . . Reinforcement 2 | . 2 . Assault . | . . . Garrison . | . . . Intercept . | . . . Searches Triggered . | . . . Construction Impeded . | . . . Haulers Reinforced . | . . . Active Scanning Responses . | . . . Cargo Convoy Interrupts . | . . . Stealth | -11 -10 -10 --------- Run | Yrd Mat Min Distress Signals 4 | . 4 . Communications Jammed . | . . . Distress Signals . | . . . Times Spotted 37 | . 26 11 Peak Tracking Total 4 | . 3 4 Tactical Retreats 1 | . 1 . Traps | -11 -10 -10 ------- Run | Yrd Mat Min Traps Triggered 3 | . 3 . Indirectly . | . . . Trap Hack Attempts . | . . . Triggered . | . . . Disarmed . | . . . Reprogrammed . | . . . Reused . | . . . Traps Extracted . | . . . Installed . | . . . Triggered . | . . . Machines | -11 -10 -10 ---------- Run | Yrd Mat Min Machines Disabled 5 | . 1 4 Max in Single Turn 1 | . 1 1 Machines Repaired . | . . . Machines Dismantled . | . . . Machines Sabotaged . | . . . Overloaded Fab Kills . | . . . Hacking | -11 -10 -10 --------- Run | Yrd Mat Min Machines Accessed 8 | . 8 . Terminals 6 | . 6 . Fabricators . | . . . Repair Stations . | . . . Recycling Units 2 | . 2 . Scanalyzers . | . . . Garrison Access . | . . . Total Hacks 23 | . 23 . Successful 14 | . 14 . Failed 9 | . 9 . Catastrophic 3 | . 3 . Database Lockouts . | . . . Manual 24 | . 24 . Terminals 19 | . 19 . Fabricators . | . . . Repair Stations . | . . . Recycling Units 4 | . 4 . Scanalyzers . | . . . Garrison Access . | . . . Terminal Hacks 4 | . 4 . Robot Analysis 2 | . 2 . Terminal Index 1 | . 1 . Unreport Threat 1 | . 1 . Fabricator Hacks . | . . . Repair Station Hacks . | . . . Recycling Unit Hacks . | . . . Scanalyzer . | . . . Garrison Access Hacks . | . . . Unauthorized Hacks 9 | . 9 . Terminals 7 | . 7 . Botnet 2 | . 2 . Skim 5 | . 5 . Fabricators . | . . . Repair Stations . | . . . Recycling Units 2 | . 2 . Tunnel 2 | . 2 . Scanalyzers . | . . . Garrison Access . | . . . Data Cores Recovered . | . . . Used . | . . . Hacking Detections 5 | . 5 . Full Trace Events . | . . . Feedback Events . | . . . Feedback Blocked . | . . . Robot Schematics Acquired . | . . . Robots Built . | . . . Authchips . | . . . Time . | . . . Total Robot Build Rating . | . . . Part Schematics Acquired . | . . . Parts Built . | . . . Authchips . | . . . Time . | . . . Total Part Build Rating . | . . . Parts Repaired . | . . . Time . | . . . Parts Recycled . | . . . Recycled Matter . | . . . Retrieved Matter . | . . . Retrieved Components . | . . . Parts Scanalyzed . | . . . Part Schematics Acquired . | . . . Parts Damaged . | . . . Bothacking | -11 -10 -10 ------------ Run | Yrd Mat Min Used RIF Installer . | . . . Robots Hacked . | . . . Non-combat . | . . . Combat . | . . . Robot Hacks Applied . | . . . Relay Couplers Released . | . . . Fabnet Peak Effective % . | . . . Robots Rewired . | . . . Allies Hacked . | . . . Hacks Repelled . | . . . Allies | -11 -10 -10 -------- Run | Yrd Mat Min Total Allies 1 | . . 1 Largest Group 1 | . . 1 Highest-Rated Group 31 | . . 31 Highest-Rated Ally 31 | . . 31 Total Orders . | . . . Ally Attacks 10 | . . 10 Total Damage 146 | . . 146 Kills 2 | . . 2 Allies Corrupted . | . . . Allies Melted . | . . . Intel | -11 -10 -10 ------- Run | Yrd Mat Min Robot Analysis Total 2 | . 2 . Derelict Logs Recovered . | . . . Drone Launches . | . . . Drone Recoveries . | . . . Exploration | -11 -10 -10 ------------- Run | Yrd Mat Min Turns Passed 2262 | 49 1729 484 Spaces Moved 1190 | 33 948 209 Core . | . . . Treads 584 | . 375 209 Legs 606 | 33 573 . Wheels . | . . . Hover . | . . . Flight . | . . . Fastest Speed 120 | 120 120 160 Average Speed 146 | 120 144 160 Slowest Speed 240 | 120 240 160 Overloaded Moves . | . . . Propulsion Burnouts . | . . . Robots Hopped . | . . . Cave-ins Triggered . | . . . Exploration Rate (%) 43 | 3 97 30 Regions Visited 2 Branch Regions 1 Pre-discovered Areas 3 | . 3 . Known Exits Taken . | . . . Unknown Exits Taken 2 | 1 1 . Scrap Searched 1 | . . 1 Spaces Dug 1 | . 1 . Terrain Destroyed 3 | . 1 2 Melee . | . . . Projectile 3 | . 1 2 AOE . | . . . Terrain Rammed . | . . . Walls Destroyed . | . . . Machines Disabled . | . . . Actions | -11 -10 -10 --------- Run | Yrd Mat Min Total 1521 | 36 1164 321 Wait 153 | . 71 82 Move 1188 | 32 947 209 Hop . | . . . Pick Up 19 | . 14 5 Fast Attach 12 | . 11 1 Attach 4 | . 3 1 Detach 1 | . . 1 Swap 6 | 1 4 1 Drop 16 | . 14 2 Fire 119 | 3 97 19 Melee . | . . . Ram . | . . . Kick 3 | . 3 . Crush . | . . . Escape Stasis . | . . . Rewire . | . . . Trap . | . . . Miscellaneous . | . . . Route ------- -11/Scrapyard -10/Materials (discovered 6 exits: *Mat x3 / [*Min x2] / Sub) -10/Mines (discovered 3 exits: Mat x2 / Sub) History --------- Turn | Location | Event 12 | -11/Scrapyard | Discovered new exit (range 2) 50 | -11/Scrapyard | Entered Materials 104 | -10/Materials | Discovered new exit (range 16) 295 | -10/Materials | Discovered new exit (range 9) 314 | -10/Materials | Build established: Mutant 432 | -10/Materials | Discovered new exit (range 15) 587 | -10/Materials | Lost 3 parts (1n2w) 678 | -10/Materials | Core integrity fell below 50% 823 | -10/Materials | Discovered new exit (range 16) 1079 | -10/Materials | Discovered new exit (range 14) 1169 | -10/Materials | Loaded intel: 7 trap records 1236 | -10/Materials | Learned 2 Mines zone layouts 1294 | -10/Materials | Learned location of 1 exit from Storage 1415 | -10/Materials | Identified exit to Subcaves 1471 | -10/Materials | Learned location of 2 exits from Materials 1779 | -10/Materials | Entered Mines 1780 | -10/Mines | Identified exit to Materials 1784 | -10/Mines | Core integrity fell below 20% 1816 | -10/Mines | Met a Derelict bent on vengeance 2039 | -10/Mines | Received a Mining Laser from a helpful Derelict 2093 | -10/Mines | Found a damaged Exp. Sensor Array with a note attached 2097 | -10/Mines | Found Prototype Device 2097 | -10/Mines | Identified Exp. Sensor Array 2136 | -10/Mines | Assembled infested the area 2263 | -10/Mines | Destroyed by as-00257 with Assembled Maul Last Messages --------------- 02150_ G-47 Trooper destroyed. 02150_ Seismic Survey Station disabled. 02160_ G-34 Mercenary destroyed. 02163_ Acquired 42 matter. 02164_ Acquired 4 matter. 02167_ Acquired 5 matter. 02169_ Acquired 1 matter. 02197_ K-01 Serf collects debris. 02209_ K-01 Serf destroyed. 02224_ Destroyed Asb. Hover Unit. 02224_ as-88527 knocked back. 02224_ as-88527 destroyed. 02228_ 3G-85W(g) Carbon-fiber Leg severed. 02228_ as-15731 destroyed. 02231_ as-84028 destroyed. 02236_ Acquired 8 matter. 02239_ Acquired 4 matter. 02250_ Lgt. Nuclear Core destroyed. 02256_ as-39498 destroyed. 02260_ as-37489 destroyed. Map ----- +----------------------------------------------------+ | ???????# #????????????????????# ##?? | | ######## ##??????????????????? #?? | | #?????????????????## #?? | | ################?## #?? | | ###### #?# #?? | | ???????# ####### ###### ### | #??? | | ???????# #?????# #????# #???? | | ???????# #????## #????##########???? | | ???????# #??### ##????????????????? | | ???????# #### ####?????????????? | | ??????## ## ##????????????? | | ?????## #????????????? | | ?????# #????????????? | | ?????# ##????????????? | | ?????## #### ##?????????????? | | ??????## ???## ##??????????????? | | ???????# ????### #???????????????? | | ???????? ??????## #???????????????? | | ???????? ???????### #???????????????? | | ??????????????????# #???????????????? | | ??????????????????# #???????????????? | | ??????????????????# #???????????????? | | ??????????????????# ###?????????????? | | ??????????????????# #?????????????? | | ??????????????????### ######????????? | | ????????????????????#% g@=#????????? | | ?????????############ ###aa#????????? | | ?????????# [% ##!#????????? | | ?????????# """ """ = " ##%#????????? | | ?????????# """ """ ""= ##a#????????? | | ?????????# """ ""%%"""%=## #????????? | | ?????????# ! ## #????????? | | ?????????# """ "" """ ## #????????? | | ?????????# """ """ """ ## #????????? | | ?????????# """ """ """ ## #????????? | | ?????????# ## #????????? | | ?????????# """ """ """ #???????????? | | ?????????# """ """ """ #???????????? | | ?????????# """ """ """ #???????????? | | ?????????# ? ??? #???????????? | | ?????????#######?# #????????????????? | | ?????????????????? ?????????????????? | | ?????????????????? ?????????????????? | | ?????????????????? ?????????????????? | | ?????????????????? ?????????????????? | | ?????????????????? ?????????????????? | | ????????????????????????????????????? | | ????????????????????????????????????? | | ????????????????????????????????????? | | ????????????????????????????????????? | +----------------------------------------------------+ Best States ------------- Heat Dissipation 25 Energy Generation 14 Energy Capacity 250 Matter Stores 300 Matter Capacity 300 Sight Range 16 Terrain Scan Range 14 Terrain Scan Density 10 Armor Coverage 150 Evasion (%) 55 Recoil Reduction 2 Item Schematics ----------------- None Robot Schematics ------------------ None Fabricated ------------ Nothing Alien Tech Used ----------------- None Achievements -------------- None Challenges ------------ None Game ------ Seed FrostHellfireKinecellerator Manual? 0 Play Time 00:39:52 Cumulative 37.7 hours Start 2024.10.18 @ 17:53:05 End 2024.10.18 @ 18:17:35 Sessions 1 Manual Loads 0 Difficulty Rogue Special Mode None Game No. 40 Rogue 22 Adventurer 16 Explorer 2 Win Type - Total 1 Types 1/0/0/0/0/0/0/0/0 Lore% 11 Gallery% 36 Achievement% 33 Wizard Run 0 Options --------- Layout 2 ASCII 0 Keyboard 0 Movement Mouse Keybinds 1 Fullscreen 2 Font 24/Terminus Map View 50x44 Zoom Use 0% Tactical HUD 1 Map Filters NONE Filters NONE Steam 1 RUN: abda11e1-ca24-40d9-a8ac-bfb8ea711209